[Event "*** Titled Tuesday Blitz"]
[Site "Chess.com"]
[Date "2020.11.24"]
[Round "1"]
[White "cukin84"]
[Black "pelmerch"]
[Result "0-1"]
[WhiteElo "2161"]
[BlackElo "2520"]
[TimeControl "180+1"]
[EndTime "10:21:47 PST"]
[Termination "pelmerch won by checkmate"]

1. e4 {[%clk 0:03:00.9]} 1... e5 {[%clk 0:02:56.9]} 2. Nf3 {[%clk 0:03:00.2]}
2... Nc6 {[%clk 0:02:57.4]} 3. c3 {[%clk 0:02:59.8]} 3... d5 {[%clk 0:02:54.6]}
4. Qa4 {[%clk 0:02:59]} 4... dxe4 {[%clk 0:02:22.8]} 5. Nxe5 {[%clk 0:02:57.9]}
5... Qd5 {[%clk 0:02:11]} 6. Nxc6 {[%clk 0:02:56.2]} 6... bxc6 {[%clk
0:02:11.9]} 7. Bc4 {[%clk 0:02:55.6]} 7... Qc5 {[%clk 0:01:58.5]} 8. d3 {[%clk
0:02:50.5]} 8... exd3 {[%clk 0:01:52]} 9. Be3 {[%clk 0:02:49.9]} 9... Qd6 {[%clk
0:01:50]} 10. O-O {[%clk 0:02:45.8]} 10... Nf6 {[%clk 0:01:49.7]} 11. Bf4 {[%clk
0:02:44.8]} 11... Qc5 {[%clk 0:01:42.6]} 12. Nd2 {[%clk 0:02:33.7]} 12... Be7
{[%clk 0:01:37.5]} 13. Nb3 {[%clk 0:02:25.2]} 13... Qb6 {[%clk 0:01:27.6]} 14.
Be3 {[%clk 0:02:24.7]} 14... Qb8 {[%clk 0:01:14.4]} 15. Qxc6+ {[%clk 0:02:23.5]}
15... Bd7 {[%clk 0:01:14.2]} 16. Qf3 {[%clk 0:02:13.6]} 16... O-O {[%clk
0:01:09.7]} 17. Bxd3 {[%clk 0:02:11.5]} 17... Bd6 {[%clk 0:01:03.4]} 18. Bd4
{[%clk 0:02:07.8]} 18... Bg4 {[%clk 0:01:01.2]} 19. Qe3 {[%clk 0:01:58.4]} 19...
Qd8 {[%clk 0:00:44.7]} 20. Bxf6 {[%clk 0:01:42]} 20... Qxf6 {[%clk 0:00:42.4]}
21. Qe4 {[%clk 0:01:40.9]} 21... Qh4 {[%clk 0:00:26.3]} 22. h3 {[%clk 0:01:37]}
22... f5 {[%clk 0:00:24.5]} 23. Qd5+ {[%clk 0:01:28.1]} 23... Kh8 {[%clk
0:00:24]} 24. Qd4 {[%clk 0:01:01.5]} 24... Rad8 {[%clk 0:00:20.6]} 25. Qa4
{[%clk 0:00:59.5]} 25... Qh6 {[%clk 0:00:18.2]} 26. Nd4 {[%clk 0:00:55.4]} 26...
Bxh3 {[%clk 0:00:18.1]} 27. gxh3 {[%clk 0:00:49.8]} 27... Qxh3 {[%clk 0:00:19]}
28. f4 {[%clk 0:00:47.3]} 28... Qg3+ {[%clk 0:00:18.8]} 29. Kh1 {[%clk
0:00:47.1]} 29... Rf6 {[%clk 0:00:18.9]} 30. Nxf5 {[%clk 0:00:44.5]} 30... Qh3+
{[%clk 0:00:19]} 31. Kg1 {[%clk 0:00:43.8]} 31... Bc5+ {[%clk 0:00:18.8]} 32.
Rf2 {[%clk 0:00:41.7]} 32... Rg6+ {[%clk 0:00:17.2]} 33. Ng3 {[%clk 0:00:24.8]}
33... Rxg3# {[%clk 0:00:17]} 0-1

[Event "*** Titled Tuesday Blitz"]
[Site "Chess.com"]
[Date "2020.11.24"]
[Round "1"]
[White "mamonika"]
[Black "SchmakAttack"]
[Result "0-1"]
[WhiteElo "2113"]
[BlackElo "2507"]
[TimeControl "180+1"]
[EndTime "10:21:48 PST"]
[Termination "SchmakAttack won by checkmate"]

1. e4 {[%clk 0:03:00.7]} 1... e6 {[%clk 0:02:59.4]} 2. d4 {[%clk 0:02:59.8]}
2... d5 {[%clk 0:02:59.7]} 3. Nd2 {[%clk 0:02:59.8]} 3... c5 {[%clk 0:02:58.1]}
4. exd5 {[%clk 0:02:59.4]} 4... Qxd5 {[%clk 0:02:55]} 5. Ngf3 {[%clk 0:02:59.1]}
5... cxd4 {[%clk 0:02:54.6]} 6. Bc4 {[%clk 0:02:58.9]} 6... Qd7 {[%clk 0:02:55]}
7. O-O {[%clk 0:02:58.4]} 7... Nc6 {[%clk 0:02:53.1]} 8. Nb3 {[%clk 0:02:57.2]}
8... Nf6 {[%clk 0:02:53.3]} 9. Bg5 {[%clk 0:02:49.6]} 9... a6 {[%clk 0:02:15.3]}
10. Nbxd4 {[%clk 0:02:46.2]} 10... Nxd4 {[%clk 0:02:11.7]} 11. Nxd4 {[%clk
0:02:45]} 11... Ne4 {[%clk 0:01:58]} 12. Bh4 {[%clk 0:02:39.4]} 12... b5 {[%clk
0:01:48.4]} 13. Bb3 {[%clk 0:02:35.6]} 13... Bb7 {[%clk 0:01:44.4]} 14. Re1
{[%clk 0:01:37.4]} 14... Bc5 {[%clk 0:01:13.8]} 15. c3 {[%clk 0:00:52.6]} 15...
Bxd4 {[%clk 0:00:56.3]} 16. cxd4 {[%clk 0:00:46.5]} 16... O-O {[%clk 0:00:54.4]}
17. d5 {[%clk 0:00:40.1]} 17... Nc5 {[%clk 0:00:33.9]} 18. dxe6 {[%clk
0:00:39.2]} 18... Qc6 {[%clk 0:00:34]} 19. exf7+ {[%clk 0:00:37]} 19... Kh8
{[%clk 0:00:34.3]} 20. Qg4 {[%clk 0:00:35]} 20... Nxb3 {[%clk 0:00:27.8]} 21.
axb3 {[%clk 0:00:34.7]} 21... Rxf7 {[%clk 0:00:28.3]} 22. Re6 {[%clk 0:00:28.1]}
22... Qd5 {[%clk 0:00:23.4]} 23. Rae1 {[%clk 0:00:27.8]} 23... Raf8 {[%clk
0:00:18.3]} 24. h3 {[%clk 0:00:21.2]} 24... Qxb3 {[%clk 0:00:11]} 25. Re7 {[%clk
0:00:20.2]} 25... h6 {[%clk 0:00:06.8]} 26. Bg3 {[%clk 0:00:18.2]} 26... Qd5
{[%clk 0:00:04]} 27. Rxf7 {[%clk 0:00:18]} 27... Qxg2# {[%clk 0:00:04]} 0-1

[Event "*** Titled Tuesday Blitz"]
[Site "Chess.com"]
[Date "2020.11.24"]
[Round "1"]
[White "ljuks68"]
[Black "Mazetovic"]
[Result "0-1"]
[WhiteElo "2395"]
[BlackElo "2762"]
[TimeControl "180+1"]
[EndTime "10:21:53 PST"]
[Termination "Mazetovic won by resignation"]

1. e4 {[%clk 0:03:00.9]} 1... c5 {[%clk 0:02:59.1]} 2. Nf3 {[%clk 0:03:00.2]}
2... Nc6 {[%clk 0:02:59.4]} 3. d4 {[%clk 0:02:59.7]} 3... cxd4 {[%clk
0:02:59.4]} 4. Nxd4 {[%clk 0:03:00]} 4... g6 {[%clk 0:03:00.1]} 5. c4 {[%clk
0:02:59]} 5... Bg7 {[%clk 0:02:59.7]} 6. Be3 {[%clk 0:02:58.5]} 6... Nf6 {[%clk
0:02:59.6]} 7. Nc3 {[%clk 0:02:58.1]} 7... O-O {[%clk 0:02:58.7]} 8. Be2 {[%clk
0:02:57.5]} 8... d6 {[%clk 0:02:58.9]} 9. f3 {[%clk 0:02:57.4]} 9... Bd7 {[%clk
0:02:58.2]} 10. Qd2 {[%clk 0:02:56.8]} 10... Nxd4 {[%clk 0:02:57.8]} 11. Bxd4
{[%clk 0:02:55.7]} 11... a5 {[%clk 0:02:58.2]} 12. c5 {[%clk 0:02:41.6]} 12...
Bc6 {[%clk 0:02:05.4]} 13. cxd6 {[%clk 0:02:34.4]} 13... exd6 {[%clk 0:02:04.4]}
14. O-O {[%clk 0:02:33.2]} 14... d5 {[%clk 0:01:53.3]} 15. e5 {[%clk 0:02:29.1]}
15... Nd7 {[%clk 0:01:52.4]} 16. f4 {[%clk 0:02:28.8]} 16... Qe7 {[%clk
0:01:26]} 17. Rae1 {[%clk 0:02:26.8]} 17... Nc5 {[%clk 0:01:14]} 18. Bf3 {[%clk
0:02:20.6]} 18... Rfd8 {[%clk 0:01:09.1]} 19. Qe3 {[%clk 0:02:20]} 19... Ne6
{[%clk 0:01:07.2]} 20. Bb6 {[%clk 0:02:17.3]} 20... d4 {[%clk 0:01:06.2]} 21.
Bxd8 {[%clk 0:02:07.2]} 21... Rxd8 {[%clk 0:01:03.3]} 22. Qc1 {[%clk 0:01:57.6]}
22... Bxf3 {[%clk 0:00:55]} 23. Rxf3 {[%clk 0:01:48.4]} 23... dxc3 {[%clk
0:00:54.8]} 24. Qxc3 {[%clk 0:01:48.8]} 24... b6 {[%clk 0:00:45.5]} 25. f5
{[%clk 0:01:24.9]} 25... gxf5 {[%clk 0:00:44.5]} 26. Rxf5 {[%clk 0:01:24.5]}
26... Qc5+ {[%clk 0:00:38.6]} 27. Qxc5 {[%clk 0:01:21.1]} 27... Nxc5 {[%clk
0:00:38.8]} 28. Rf2 {[%clk 0:00:57.4]} 28... Bf8 {[%clk 0:00:36.7]} 29. Rfe2
{[%clk 0:00:51.7]} 29... Ne6 {[%clk 0:00:30.2]} 30. Rc1 {[%clk 0:00:38.4]} 30...
Bc5+ {[%clk 0:00:30.3]} 31. Kf1 {[%clk 0:00:38.2]} 31... a4 {[%clk 0:00:29.6]}
32. Rc4 {[%clk 0:00:35.5]} 32... b5 {[%clk 0:00:28.5]} 33. Rg4+ {[%clk
0:00:35.1]} 33... Kf8 {[%clk 0:00:28.5]} 34. Rc2 {[%clk 0:00:33]} 34... Rd1+
{[%clk 0:00:27.3]} 35. Ke2 {[%clk 0:00:32.2]} 35... Rd5 {[%clk 0:00:27.5]} 36.
Re4 {[%clk 0:00:22]} 36... Nd4+ {[%clk 0:00:27.3]} 0-1

[Event "*** Titled Tuesday Blitz"]
[Site "Chess.com"]
[Date "2020.11.24"]
[Round "1"]
[White "beto-betun"]
[Black "Orest_Vovk"]
[Result "0-1"]
[WhiteElo "2199"]
[BlackElo "2527"]
[TimeControl "180+1"]
[EndTime "10:21:55 PST"]
[Termination "Orest_Vovk won by checkmate"]

1. d4 {[%clk 0:03:00.9]} 1... Nc6 {[%clk 0:03:00]} 2. d5 {[%clk 0:02:59.9]} 2...
Ne5 {[%clk 0:02:59.7]} 3. f4 {[%clk 0:02:58.9]} 3... Ng6 {[%clk 0:02:59.6]} 4.
e4 {[%clk 0:02:54]} 4... e5 {[%clk 0:02:46.2]} 5. dxe6 {[%clk 0:02:38.5]} 5...
dxe6 {[%clk 0:02:45.6]} 6. Qxd8+ {[%clk 0:02:36]} 6... Kxd8 {[%clk 0:02:45.2]}
7. Nf3 {[%clk 0:02:36.5]} 7... Bc5 {[%clk 0:02:37.8]} 8. Nc3 {[%clk 0:02:12.4]}
8... Bd7 {[%clk 0:02:33.2]} 9. h3 {[%clk 0:02:10.6]} 9... Nf6 {[%clk 0:02:32.6]}
10. Bd2 {[%clk 0:02:06.6]} 10... Bc6 {[%clk 0:02:32.3]} 11. Bd3 {[%clk
0:02:05.5]} 11... Ke7 {[%clk 0:02:31.9]} 12. O-O-O {[%clk 0:02:05.5]} 12... Rhd8
{[%clk 0:02:30.1]} 13. Rhe1 {[%clk 0:01:59.1]} 13... Nh5 {[%clk 0:02:11.1]} 14.
f5 {[%clk 0:01:53.6]} 14... Ngf4 {[%clk 0:02:10.1]} 15. Bxf4 {[%clk 0:01:51.3]}
15... Nxf4 {[%clk 0:02:08.2]} 16. Ne5 {[%clk 0:01:29.4]} 16... Nxd3+ {[%clk
0:01:56]} 17. cxd3 {[%clk 0:01:23]} 17... Be8 {[%clk 0:01:54.1]} 18. fxe6 {[%clk
0:01:22.5]} 18... fxe6 {[%clk 0:01:53.6]} 19. Rf1 {[%clk 0:01:17.1]} 19... Bd4
{[%clk 0:01:48.4]} 20. Nc4 {[%clk 0:01:09.5]} 20... b5 {[%clk 0:01:38]} 21. Nd2
{[%clk 0:01:03.8]} 21... Be3 {[%clk 0:01:34.5]} 22. Kc2 {[%clk 0:01:01.7]} 22...
b4 {[%clk 0:01:30.5]} 23. Ne2 {[%clk 0:01:01.7]} 23... Bb5 {[%clk 0:01:26.3]}
24. Nc4 {[%clk 0:00:59.7]} 24... Bxc4 {[%clk 0:01:26.2]} 25. dxc4 {[%clk
0:01:00.6]} 25... Rxd1 {[%clk 0:01:18.4]} 26. Rxd1 {[%clk 0:01:01.5]} 26... Rf8
{[%clk 0:01:17.3]} 27. Kd3 {[%clk 0:00:54.5]} 27... Bc5 {[%clk 0:01:15.5]} 28.
Rd2 {[%clk 0:00:44.3]} 28... Rf1 {[%clk 0:01:11.7]} 29. Ng3 {[%clk 0:00:41]}
29... Ra1 {[%clk 0:01:05.2]} 30. b3 {[%clk 0:00:41.1]} 30... g6 {[%clk
0:01:04.1]} 31. e5 {[%clk 0:00:35.4]} 31... Re1 {[%clk 0:01:00.2]} 32. Re2
{[%clk 0:00:30.7]} 32... Rd1+ {[%clk 0:00:57.5]} 33. Rd2 {[%clk 0:00:30.2]}
33... Rc1 {[%clk 0:00:53.1]} 34. Ke4 {[%clk 0:00:24.5]} 34... Re1+ {[%clk
0:00:47.5]} 35. Kd3 {[%clk 0:00:23.7]} 35... Re3+ {[%clk 0:00:46.6]} 36. Kc2
{[%clk 0:00:21.8]} 36... Rxg3 {[%clk 0:00:45.8]} 37. Re2 {[%clk 0:00:22]} 37...
Rc3+ {[%clk 0:00:44.4]} 38. Kd2 {[%clk 0:00:21.7]} 38... a5 {[%clk 0:00:44.5]}
39. Re4 {[%clk 0:00:18.7]} 39... a4 {[%clk 0:00:43.6]} 40. Re2 {[%clk
0:00:17.6]} 40... axb3 {[%clk 0:00:43.2]} 41. axb3 {[%clk 0:00:18.5]} 41... Rxb3
{[%clk 0:00:43.5]} 42. Kc2 {[%clk 0:00:19.3]} 42... Ra3 {[%clk 0:00:43.2]} 43.
Kb2 {[%clk 0:00:19.4]} 43... Bd4+ {[%clk 0:00:42.9]} 44. Kb1 {[%clk 0:00:19.2]}
44... b3 {[%clk 0:00:41.8]} 45. Re4 {[%clk 0:00:17.6]} 45... Ra1# {[%clk
0:00:41.6]} 0-1

[Event "*** Titled Tuesday Blitz"]
[Site "Chess.com"]
[Date "2020.11.24"]
[Round "1"]
[White "BillCoe"]
[Black "adriangschnitzer"]
[Result "0-1"]
[WhiteElo "2061"]
[BlackElo "2496"]
[TimeControl "180+1"]
[EndTime "10:21:55 PST"]
[Termination "adriangschnitzer won on time"]

1. e4 {[%clk 0:02:59.3]} 1... c5 {[%clk 0:02:57.2]} 2. Nf3 {[%clk 0:02:59.4]}
2... Nc6 {[%clk 0:02:54.7]} 3. Bb5 {[%clk 0:02:57.6]} 3... g6 {[%clk 0:02:54.6]}
4. Bxc6 {[%clk 0:02:55.3]} 4... bxc6 {[%clk 0:02:55.5]} 5. d3 {[%clk 0:02:55]}
5... Bg7 {[%clk 0:02:54.9]} 6. O-O {[%clk 0:02:54.8]} 6... e5 {[%clk 0:02:53.7]}
7. c4 {[%clk 0:02:53.5]} 7... d6 {[%clk 0:02:52.8]} 8. Nc3 {[%clk 0:02:53.5]}
8... f5 {[%clk 0:02:49.1]} 9. Bg5 {[%clk 0:02:33]} 9... Qc7 {[%clk 0:02:45.7]}
10. exf5 {[%clk 0:02:30.7]} 10... gxf5 {[%clk 0:02:44.6]} 11. h3 {[%clk
0:02:27.2]} 11... h6 {[%clk 0:02:41.5]} 12. Bd2 {[%clk 0:02:19.7]} 12... Nf6
{[%clk 0:02:40.6]} 13. Nh4 {[%clk 0:02:18.8]} 13... O-O {[%clk 0:02:36.7]} 14.
Qc1 {[%clk 0:01:59.9]} 14... Kh7 {[%clk 0:02:34.5]} 15. f4 {[%clk 0:02:00.1]}
15... e4 {[%clk 0:02:29.6]} 16. dxe4 {[%clk 0:01:59.5]} 16... Nxe4 {[%clk
0:02:24.2]} 17. Nxe4 {[%clk 0:01:58.7]} 17... fxe4 {[%clk 0:02:25.1]} 18. Bc3
{[%clk 0:01:49.1]} 18... Bd4+ {[%clk 0:02:12.4]} 19. Bxd4 {[%clk 0:01:47.7]}
19... cxd4 {[%clk 0:02:13.3]} 20. Qd1 {[%clk 0:01:40.1]} 20... c5 {[%clk
0:01:59.7]} 21. Qh5 {[%clk 0:01:36.3]} 21... Qf7 {[%clk 0:01:56.9]} 22. Qe2
{[%clk 0:01:20.4]} 22... e3 {[%clk 0:01:44.2]} 23. g4 {[%clk 0:01:10.2]} 23...
Qf6 {[%clk 0:01:34.8]} 24. g5 {[%clk 0:01:00.5]} 24... hxg5 {[%clk 0:01:28.5]}
25. Qh5+ {[%clk 0:00:59.6]} 25... Qh6 {[%clk 0:01:26.4]} 26. Qxh6+ {[%clk
0:00:59.1]} 26... Kxh6 {[%clk 0:01:27.1]} 27. fxg5+ {[%clk 0:00:59.2]} 27... Kg7
{[%clk 0:01:27.5]} 28. Kg2 {[%clk 0:00:46.1]} 28... Bb7+ {[%clk 0:01:22]} 29.
Kg3 {[%clk 0:00:44]} 29... e2 {[%clk 0:01:17.5]} 30. Nf5+ {[%clk 0:00:19.6]}
30... Kg6 {[%clk 0:01:09.3]} 31. Ne7+ {[%clk 0:00:08.1]} 31... Kxg5 {[%clk
0:01:09.1]} 32. Rf2 {[%clk 0:00:06.5]} 32... d3 {[%clk 0:01:02]} 33. h4+ {[%clk
0:00:05.3]} 33... Kh5 {[%clk 0:01:00.1]} 34. Nf5 {[%clk 0:00:01.7]} 34... Rg8+
{[%clk 0:00:55.6]} 35. Kh2 {[%clk 0:00:01.9]} 35... Rae8 {[%clk 0:00:52.4]} 36.
Ng3+ {[%clk 0:00:02.3]} 36... Rxg3 {[%clk 0:00:50.8]} 37. Kxg3 {[%clk
0:00:01.3]} 37... d2 {[%clk 0:00:48.4]} 0-1

[Event "*** Titled Tuesday Blitz"]
[Site "Chess.com"]
[Date "2020.11.24"]
[Round "1"]
[White "Rap_woyska"]
[Black "Chopper1905"]
[Result "0-1"]
[WhiteElo "2459"]
[BlackElo "2973"]
[TimeControl "180+1"]
[EndTime "10:22:00 PST"]
[Termination "Chopper1905 won by resignation"]

1. c4 {[%clk 0:03:00.9]} 1... c6 {[%clk 0:02:51.5]} 2. e4 {[%clk 0:03:00.4]}
2... d5 {[%clk 0:02:46.6]} 3. exd5 {[%clk 0:03:01.3]} 3... cxd5 {[%clk
0:02:47.5]} 4. d4 {[%clk 0:03:01.6]} 4... Nf6 {[%clk 0:02:47.3]} 5. Nc3 {[%clk
0:03:02.1]} 5... Nc6 {[%clk 0:02:46.5]} 6. Nf3 {[%clk 0:03:02.5]} 6... Bg4
{[%clk 0:02:41.1]} 7. cxd5 {[%clk 0:02:59.7]} 7... Nxd5 {[%clk 0:02:42]} 8. Qb3
{[%clk 0:02:59.5]} 8... Nb6 {[%clk 0:02:28.5]} 9. Ne5 {[%clk 0:02:08.2]} 9...
Be6 {[%clk 0:02:03]} 10. Qb5 {[%clk 0:01:57]} 10... Rc8 {[%clk 0:01:57.4]} 11.
Be3 {[%clk 0:01:33.2]} 11... a6 {[%clk 0:01:57.3]} 12. Nxc6 {[%clk 0:01:24.3]}
12... Rxc6 {[%clk 0:01:58.2]} 13. Qa5 {[%clk 0:01:05.2]} 13... Nd5 {[%clk
0:01:49.6]} 14. Qxd8+ {[%clk 0:01:02.1]} 14... Kxd8 {[%clk 0:01:50.5]} 15. Kd2
{[%clk 0:00:51.9]} 15... Nxc3 {[%clk 0:01:35.6]} 16. bxc3 {[%clk 0:00:51.6]}
16... Bd5 {[%clk 0:01:30.4]} 17. f3 {[%clk 0:00:51.7]} 17... e6 {[%clk
0:01:29.6]} 18. Bd3 {[%clk 0:00:48.7]} 18... Ba3 {[%clk 0:01:26.9]} 19. Rhb1
{[%clk 0:00:40.9]} 19... b5 {[%clk 0:01:27.2]} 20. Be4 {[%clk 0:00:38.7]} 20...
Rc4 {[%clk 0:01:16.1]} 21. Bxd5 {[%clk 0:00:37.7]} 21... exd5 {[%clk 0:01:17]}
22. Rb3 {[%clk 0:00:38]} 22... Ra4 {[%clk 0:01:16.3]} 23. Kd3 {[%clk 0:00:37.1]}
23... Kd7 {[%clk 0:01:16.3]} 24. Re1 {[%clk 0:00:34]} 24... Bd6 {[%clk
0:01:13.4]} 25. Re2 {[%clk 0:00:34.3]} 25... Bxh2 {[%clk 0:01:11]} 26. Bc1
{[%clk 0:00:21.6]} 26... Bd6 {[%clk 0:01:08]} 27. Rb1 {[%clk 0:00:19.7]} 27...
Re8 {[%clk 0:01:07.2]} 28. Rbb2 {[%clk 0:00:19]} 28... Ba3 {[%clk 0:01:00.1]}
29. Rxe8 {[%clk 0:00:18.4]} 29... Bxb2 {[%clk 0:00:59.7]} 30. Re1 {[%clk
0:00:15.5]} 30... Bxc1 {[%clk 0:00:59.3]} 31. Rxc1 {[%clk 0:00:16.4]} 31... Rxa2
{[%clk 0:00:59.9]} 32. g4 {[%clk 0:00:16.6]} 32... h6 {[%clk 0:00:57.2]} 33. Rh1
{[%clk 0:00:12.5]} 33... Ra3 {[%clk 0:00:55.6]} 34. Kc2 {[%clk 0:00:11.5]} 34...
a5 {[%clk 0:00:53.4]} 35. Rh5 {[%clk 0:00:11.5]} 35... Kd6 {[%clk 0:00:51.4]}
36. g5 {[%clk 0:00:11.8]} 36... hxg5 {[%clk 0:00:49.1]} 37. Rxg5 {[%clk
0:00:12.5]} 37... g6 {[%clk 0:00:49.6]} 38. Re5 {[%clk 0:00:12.8]} 38... b4
{[%clk 0:00:46.8]} 39. cxb4 {[%clk 0:00:11.6]} 39... axb4 {[%clk 0:00:47.7]} 40.
f4 {[%clk 0:00:10.5]} 40... Rc3+ {[%clk 0:00:45.9]} 41. Kd2 {[%clk 0:00:10.2]}
41... Rf3 {[%clk 0:00:46.8]} 0-1

[Event "*** Titled Tuesday Blitz"]
[Site "Chess.com"]
[Date "2020.11.24"]
[Round "1"]
[White "canary2016"]
[Black "Dave_ChessMate"]
[Result "1/2-1/2"]
[WhiteElo "1969"]
[BlackElo "2468"]
[TimeControl "180+1"]
[EndTime "10:22:00 PST"]
[Termination "Game drawn by repetition"]

1. d4 {[%clk 0:03:00.9]} 1... Nf6 {[%clk 0:02:58.9]} 2. c4 {[%clk 0:03:00.4]}
2... e6 {[%clk 0:02:59.8]} 3. g3 {[%clk 0:02:59.8]} 3... c5 {[%clk 0:02:56.8]}
4. Bg2 {[%clk 0:02:58.5]} 4... cxd4 {[%clk 0:02:56]} 5. Qxd4 {[%clk 0:02:57.8]}
5... Nc6 {[%clk 0:02:56.2]} 6. Qd1 {[%clk 0:02:56.9]} 6... Bb4+ {[%clk
0:02:55.3]} 7. Nc3 {[%clk 0:02:56.4]} 7... Bxc3+ {[%clk 0:02:55.3]} 8. bxc3
{[%clk 0:02:55.9]} 8... O-O {[%clk 0:02:56.2]} 9. Nf3 {[%clk 0:02:53.6]} 9... d5
{[%clk 0:02:56]} 10. cxd5 {[%clk 0:02:52.6]} 10... Nxd5 {[%clk 0:02:56.9]} 11.
Bb2 {[%clk 0:02:48.6]} 11... Qb6 {[%clk 0:02:49.6]} 12. Rb1 {[%clk 0:02:45.3]}
12... Rd8 {[%clk 0:02:50]} 13. Qc2 {[%clk 0:02:39.8]} 13... Qa5 {[%clk
0:02:43.3]} 14. a3 {[%clk 0:02:28.7]} 14... b6 {[%clk 0:02:36.3]} 15. O-O {[%clk
0:02:27.5]} 15... Ba6 {[%clk 0:02:37]} 16. Rfd1 {[%clk 0:02:24.2]} 16... Bc4
{[%clk 0:02:29.2]} 17. Nd4 {[%clk 0:02:13.4]} 17... Nxd4 {[%clk 0:02:20.9]} 18.
cxd4 {[%clk 0:02:12.5]} 18... Rac8 {[%clk 0:02:21.5]} 19. Qd2 {[%clk 0:02:09.6]}
19... Qxd2 {[%clk 0:02:14.2]} 20. Rxd2 {[%clk 0:02:09.1]} 20... b5 {[%clk
0:02:05.8]} 21. e3 {[%clk 0:02:07.6]} 21... a5 {[%clk 0:02:05.5]} 22. Ba1 {[%clk
0:01:56.4]} 22... b4 {[%clk 0:02:02.8]} 23. axb4 {[%clk 0:01:55.8]} 23... Nxb4
{[%clk 0:02:01.3]} 24. Bc3 {[%clk 0:01:53.4]} 24... Rb8 {[%clk 0:01:52.6]} 25.
Rdb2 {[%clk 0:01:51.7]} 25... Bd3 {[%clk 0:01:40.2]} 26. Rd1 {[%clk 0:01:37.9]}
26... Bc2 {[%clk 0:01:33.9]} 27. Rd2 {[%clk 0:01:30.3]} 27... Bg6 {[%clk
0:01:33.7]} 28. Rd1 {[%clk 0:01:14.4]} 28... Rdc8 {[%clk 0:01:32.3]} 29. Bxb4
{[%clk 0:01:12.3]} 29... Rxb4 {[%clk 0:01:28.2]} 30. Ra2 {[%clk 0:01:08.1]}
30... a4 {[%clk 0:01:25.8]} 31. Rda1 {[%clk 0:01:07]} 31... h6 {[%clk
0:01:19.1]} 32. Bf3 {[%clk 0:00:50.4]} 32... Bc2 {[%clk 0:01:08.1]} 33. Rc1
{[%clk 0:00:39.4]} 33... Rbc4 {[%clk 0:01:08.3]} 34. Be2 {[%clk 0:00:30.3]}
34... Rc3 {[%clk 0:01:02.8]} 35. Bb5 {[%clk 0:00:21.6]} 35... Bb3 {[%clk
0:00:58.4]} 36. Rxc3 {[%clk 0:00:19.6]} 36... Rxc3 {[%clk 0:00:59.3]} 37. Ra3
{[%clk 0:00:16.4]} 37... Rc1+ {[%clk 0:00:46.7]} 38. Kg2 {[%clk 0:00:15.7]}
38... Rc3 {[%clk 0:00:47.4]} 39. Kg1 {[%clk 0:00:10.6]} 39... Rc1+ {[%clk
0:00:32.5]} 40. Kg2 {[%clk 0:00:10.1]} 40... Rc3 {[%clk 0:00:31.7]} 41. Kg1
{[%clk 0:00:10]} 1/2-1/2

[Event "*** Titled Tuesday Blitz"]
[Site "Chess.com"]
[Date "2020.11.24"]
[Round "1"]
[White "WonderChampion"]
[Black "AldokhinIvan"]
[Result "0-1"]
[WhiteElo "2034"]
[BlackElo "2481"]
[TimeControl "180+1"]
[EndTime "10:22:05 PST"]
[Termination "AldokhinIvan won by resignation"]

1. d4 {[%clk 0:02:58.5]} 1... Nf6 {[%clk 0:02:58.6]} 2. Bg5 {[%clk 0:02:54.2]}
2... Ne4 {[%clk 0:02:56.7]} 3. Bf4 {[%clk 0:02:52.4]} 3... c5 {[%clk 0:02:56.4]}
4. f3 {[%clk 0:02:49.2]} 4... Nf6 {[%clk 0:02:55.9]} 5. c3 {[%clk 0:02:41]} 5...
Qb6 {[%clk 0:02:52.4]} 6. Qd2 {[%clk 0:02:36.1]} 6... cxd4 {[%clk 0:02:44.7]} 7.
cxd4 {[%clk 0:02:37]} 7... d5 {[%clk 0:02:38.4]} 8. Nc3 {[%clk 0:02:34.4]} 8...
Nc6 {[%clk 0:02:36.3]} 9. e3 {[%clk 0:02:28.8]} 9... e6 {[%clk 0:02:31]} 10. Bd3
{[%clk 0:02:23.6]} 10... Be7 {[%clk 0:02:24.8]} 11. Nge2 {[%clk 0:02:21.1]}
11... O-O {[%clk 0:02:23.2]} 12. O-O {[%clk 0:02:21.5]} 12... Nh5 {[%clk
0:02:17.5]} 13. b3 {[%clk 0:02:06.7]} 13... Nxf4 {[%clk 0:02:00.9]} 14. Nxf4
{[%clk 0:02:07.6]} 14... Bd7 {[%clk 0:01:43.6]} 15. Rac1 {[%clk 0:01:58.3]}
15... Rac8 {[%clk 0:01:41.9]} 16. Na4 {[%clk 0:01:50.4]} 16... Qb4 {[%clk
0:01:33.1]} 17. Qxb4 {[%clk 0:01:45]} 17... Nxb4 {[%clk 0:01:33.1]} 18. Bb1
{[%clk 0:01:29.4]} 18... b6 {[%clk 0:01:23.6]} 19. Nc3 {[%clk 0:01:20.5]} 19...
Rc7 {[%clk 0:01:20.5]} 20. e4 {[%clk 0:01:12.3]} 20... Rfc8 {[%clk 0:01:16.9]}
21. Nfe2 {[%clk 0:01:03.9]} 21... dxe4 {[%clk 0:01:06.3]} 22. fxe4 {[%clk
0:00:56.8]} 22... Bg5 {[%clk 0:01:06]} 23. Rcd1 {[%clk 0:00:45.8]} 23... Rxc3
{[%clk 0:01:04.3]} 24. Nxc3 {[%clk 0:00:45.9]} 24... Rxc3 {[%clk 0:01:04.7]} 25.
d5 {[%clk 0:00:39.8]} 25... e5 {[%clk 0:01:04.4]} 26. Rf3 {[%clk 0:00:29.3]}
26... Rxf3 {[%clk 0:00:56.9]} 27. gxf3 {[%clk 0:00:30.2]} 27... Kf8 {[%clk
0:00:56]} 28. a3 {[%clk 0:00:27.5]} 28... Na6 {[%clk 0:00:54.7]} 29. Bd3 {[%clk
0:00:25.8]} 29... Nc5 {[%clk 0:00:53.9]} 30. Bc4 {[%clk 0:00:25.7]} 30... b5
{[%clk 0:00:49]} 31. b4 {[%clk 0:00:21.2]} 31... Nxe4 {[%clk 0:00:46.5]} 32.
fxe4 {[%clk 0:00:15.4]} 32... bxc4 {[%clk 0:00:46.4]} 33. Rf1 {[%clk 0:00:14.9]}
33... c3 {[%clk 0:00:44.5]} 34. Rf3 {[%clk 0:00:03.9]} 34... c2 {[%clk
0:00:41.6]} 35. Rc3 {[%clk 0:00:04.4]} 35... c1=Q+ {[%clk 0:00:41.3]} 36. Rxc1
{[%clk 0:00:04.9]} 36... Bxc1 {[%clk 0:00:42]} 37. Kf1 {[%clk 0:00:05.7]} 37...
Bxa3 {[%clk 0:00:35.7]} 0-1